Cogmind - Beta 10.2 @@@ ROGUE MODE // 2020.12.27 @ 09:12:28 Player: OldPopsy Result: Destroyed by D-53 Grenadier with Mini Grenade Launcher Performance ------------- Evolutions (0) 0 Regions Visited (2) 400 Robots Destroyed (9) 45 Value Destroyed (106) 106 Prototype IDs (0) 0 Alien Tech Used (0) 0 Bonus (0) 0 TOTAL SCORE: 551 Bonus ------- None Cogmind --------- Core Integrity 0/250 Matter 265/300 Energy 0/100 System Corruption 7% Temperature Cool (0) Movement Walking (130) Location -10/Mines Parts ------- > --- POWER (1) -------- (None) > --- PROPULSION (2) --- Titanium Leg > --- UTILITY (2) ------ Improved Trap Extractor > --- WEAPON (2) ------- EM Shotgun Minigun > --- INVENTORY (4) ---- (None) Peak State ------------ > --- POWER ------------ Light Deuterium Engine > --- PROPULSION ------- Light Treads Light Treads > --- UTILITY ---------- Small Storage Unit Visual Processing Unit > --- WEAPON ----------- Electrolaser Light Assault Rifle > --- INVENTORY -------- Light Ion Engine Titanium Leg Medium Matter Pod Improved Trap Extractor EM Pulse Gun EM Shotgun [Rating: 13] Favorites ----------- Power Light Deuterium Engine Engine Light Deuterium Engine Propulsion Light Treads Treads Light Treads Leg Titanium Leg Utility Small Storage Unit Device Sensor Array Storage Small Storage Unit Processor Visual Processing Unit Weapon Light Assault Rifle Energy Gun Electrolaser Ballistic Gun Light Assault Rifle Build | -11 -10 -10 ------- Run | Scr Mat Min Slots Evolved . | . . . Power . | . . . Propulsion . | . . . Utility . | . . . Weapon . | . . . Parts Attached 16 | 6 3 7 Power 4 | 1 1 2 Engine 4 | 1 1 2 Core . | . . . Reactor . | . . . Propulsion 3 | 2 . 1 Treads 2 | 2 . . Leg 1 | . . 1 Wheel . | . . . Hover . | . . . Flight . | . . . Utility 4 | 1 2 1 Device 2 | . 1 1 Storage 1 | 1 . . Processor 1 | . 1 . Hackware . | . . . Protection . | . . . Artifact . | . . . Weapon 5 | 2 . 3 Energy Gun 3 | 1 . 2 Energy Cannon . | . . . Ballistic Gun 2 | 1 . 1 Ballistic Cannon . | . . . Launcher . | . . . Special Weapon . | . . . Impact Weapon . | . . . Slashing Weapon . | . . . Piercing Weapon . | . . . Special Melee Weapon . | . . . Unidentified Prototypes . | . . . Parts Lost 9 | . 2 7 Power 2 | . 1 1 Propulsion 2 | . . 2 Utility 3 | . 1 2 Weapon 2 | . . 2 Highest Loss Streak 7 | . 2 7 Average Slot Usage (%) 92 | . 89 93 Engine 12 | . 12 12 Treads 26 | . 28 26 Device 1 | . 3 . Storage 14 | . 14 14 Processor 9 | . 2 13 Energy Gun 13 | . 14 13 Ballistic Gun 13 | . 14 12 Naked Turns . | . . . Heaviest Build 13 | 10 11 13 Greatest Support 40 | 40 40 40 Greatest Overweight (x) 1 | . . 1 Average Overweight (x) . | . . . Largest Inventory Capacity 6 | 6 6 6 Average Capacity 5 | 5 6 5 Most Carried 6 | 4 3 6 Average Carried 3 | 1 1 4 Final Capacity 6 | 6 6 4 Final Carried 3 | 1 3 . Class Distribution -------------------- 100% | Mutant Dominant Class ---------------- Mutant | -10/Materials Mutant | -10/Mines Resources | -11 -10 -10 ----------- Run | Scr Mat Min Matter Collected 320 | 198 86 36 Remotely . | . . . Salvage Created 184 | . 117 67 Parts 20 | . 16 4 Haulers Intercepted . | . . . Recyclers Shooed . | . . . Parts Field Recycled . | . . . Retrieved Matter . | . . . Parts Self-Destructed . | . . . Prevented . | . . . Kills | -11 -10 -10 ------- Run | Scr Mat Min Combat Hostiles Destroyed 9 | . 5 4 Guns 8 | . 4 4 AOE 1 | . 1 . Classes Destroyed 3 | . 2 1 Watcher 1 | . 1 . Swarmer 8 | . 5 3 Assembled 1 | . . 1 Best Kill Streak 6 | . 6 3 Combat Bots Only 5 | . 5 3 Max Kills in Single Turn 2 | . 2 1 Gunslinging 1 | . 1 . Exploded 1 | . 1 . Melee . | . . . Uniques/NPCs Destroyed . | . . . Combat | -11 -10 -10 -------- Run | Scr Mat Min Damage Taken 1094 | . 317 777 Core 250 | . 46 204 Absorbed by Shields . | . . . Core Remaining (%) 100 | 100 . . Volleys Fired 26 | . 14 12 Largest 2 | . 2 2 Hottest 83 | . 60 83 Shots Fired 48 | . 28 20 Gun 48 | . 28 20 Cannon . | . . . Launcher . | . . . Special . | . . . Kinetic 23 | . 14 9 Thermal 11 | . . 11 Explosive . | . . . Electromagnetic 14 | . 14 . Robot Hit Streak 6 | . 4 6 Robot Miss Streak 5 | . 5 3 Penetration Max . | . . . Secondary Targets 4 | . 3 1 Max Gunslinging Chain 1 | . 1 1 Shots Hit Robots 25 | . 15 10 Core Hits 14 | . 8 6 Critical Hits . | . . . Critical Kills . | . . . Critical Parts Destroyed . | . . . Melee Attacks . | . . . Impact . | . . . Slashing . | . . . Piercing . | . . . Sneak Attacks . | . . . Combat Hostiles . | . . . Follow-up Attacks . | . . . Damage Inflicted 326 | . 155 171 Guns 306 | . 135 171 Cannons . | . . . Explosions 20 | . 20 . Melee . | . . . Ramming . | . . . Kinetic 68 | . 45 23 Thermal 168 | . 20 148 Explosive . | . . . Electromagnetic 90 | . 90 . Impact . | . . . Slashing . | . . . Piercing . | . . . Highest Corruption 7 | . . 7 Average Corruption 6 | . . 6 Corruption Purged . | . . . Effects 1 | . . 1 Energy Discharges 1 | . . 1 Overload Shots . | . . . Overflow Damage . | . . . Projectiles . | . . . Explosions . | . . . Melee . | . . . Knockbacks . | . . . Impact . | . . . Kinetic . | . . . Secondary . | . . . Self-Inflicted Damage . | . . . Shots . | . . . Rammed . | . . . Targets Rammed . | . . . Kicked . | . . . Crushed . | . . . Highest Temperature 188 | . 60 188 Average Temperature 47 | . 25 65 Received Heat Transfer 100 | . . 100 Siege Activations . | . . . Robots Corrupted . | . . . Combat Hostiles . | . . . Parts Fried . | . . . Impact Corruptions . | . . . Robots Melted . | . . . Combat Hostiles . | . . . Parts Melted 1 | . . 1 Heat Transferred 383 | . 50 333 Parts Sabotaged . | . . . Parts Stolen . | . . . Parts Stripped . | . . . Power Chain Reactions 1 | . 1 . Missiles Intercepted . | . . . Alert | -11 -10 -10 ------- Run | Scr Mat Min Peak Influence 143 | . 112 143 Initial 43 | . . 43 Average 67 | . 74 82 Maximum Alert Level . | . . . Low Security (%) 100 | 100 100 100 Level 1 . | . . . Level 2 . | . . . Level 3 . | . . . Level 4 . | . . . Level 5 . | . . . High Security . | . . . Max Security . | . . . Squads Dispatched . | . . . Investigation . | . . . Extermination . | . . . Reinforcement . | . . . Assault . | . . . Garrison . | . . . Intercept . | . . . Construction Impeded . | . . . Haulers Reinforced . | . . . Stealth | -11 -10 -10 --------- Run | Scr Mat Min Distress Signals . | . . . Communications Jammed . | . . . Distress Signals . | . . . Times Spotted 31 | . 7 24 Peak Tracking Total 20 | . 6 20 Tactical Retreats . | . . . Traps | -11 -10 -10 ------- Run | Scr Mat Min Traps Triggered 1 | . . 1 Indirectly . | . . . Trap Hack Attempts . | . . . Triggered . | . . . Disarmed . | . . . Reprogrammed . | . . . Reused . | . . . Traps Extracted . | . . . Installed . | . . . Triggered . | . . . Machines | -11 -10 -10 ---------- Run | Scr Mat Min Machines Disabled 1 | . . 1 Max in Single Turn 1 | . . 1 Machines Sabotaged . | . . . Garrisons Compromised . | . . . Overloaded Fab Kills . | . . . Fab Network Shutdowns . | . . . Hacking | -11 -10 -10 --------- Run | Scr Mat Min Machines Accessed 2 | . 1 1 Terminals . | . . . Fabricators . | . . . Repair Stations . | . . . Recycling Units 1 | . 1 . Scanalyzers . | . . . Garrison Access . | . . . Total Hacks 4 | . 3 1 Successful 3 | . 2 1 Failed 1 | . 1 . Catastrophic . | . . . Database Lockouts . | . . . Manual . | . . . Terminals . | . . . Fabricators . | . . . Repair Stations . | . . . Recycling Units 3 | . 3 . Scanalyzers . | . . . Garrison Access . | . . . Terminal Hacks 1 | . . 1 Open Door 1 | . . 1 Fabricator Hacks . | . . . Repair Station Hacks . | . . . Recycling Unit Hacks 2 | . 2 . Report Inventory 1 | . 1 . Retrieve Components 1 | . 1 . Scanalyzer . | . . . Garrison Access Hacks . | . . . Unauthorized Hacks . | . . . Terminals . | . . . Fabricators . | . . . Repair Stations . | . . . Recycling Units . | . . . Scanalyzers . | . . . Garrison Access . | . . . Data Cores Recovered . | . . . Used . | . . . Hacking Detections 1 | . 1 . Full Trace Events . | . . . Feedback Events . | . . . Feedback Blocked . | . . . Robot Schematics Acquired . | . . . Robots Built . | . . . Matter . | . . . Time . | . . . Total Robot Build Rating . | . . . Part Schematics Acquired . | . . . Parts Built . | . . . Matter . | . . . Time . | . . . Total Part Build Rating . | . . . Parts Repaired . | . . . Time . | . . . Parts Recycled . | . . . Recycled Matter . | . . . Retrieved Matter . | . . . Retrieved Components 3 | . 3 . Parts Scanalyzed . | . . . Part Schematics Acquired . | . . . Parts Damaged . | . . . Bothacking | -11 -10 -10 ------------ Run | Scr Mat Min Used RIF Installer . | . . . Robots Hacked . | . . . Non-combat . | . . . Combat . | . . . Robot Hacks Applied . | . . . Relay Couplers Released . | . . . Robots Rewired . | . . . Allies Hacked . | . . . Hacks Repelled . | . . . Allies | -11 -10 -10 -------- Run | Scr Mat Min Total Allies . | . . . Largest Group . | . . . Highest-Rated Group . | . . . Highest-Rated Ally . | . . . Total Orders . | . . . Ally Attacks . | . . . Total Damage . | . . . Kills . | . . . Allies Corrupted . | . . . Allies Melted . | . . . Intel | -11 -10 -10 ------- Run | Scr Mat Min Robot Analysis Total . | . . . Derelict Logs Recovered 1 | . . 1 Drone Launches . | . . . Drone Recoveries . | . . . Exploration | -11 -10 -10 ------------- Run | Scr Mat Min Turns Passed 547 | 85 154 308 Spaces Moved 290 | 59 67 164 Core 34 | 25 . 9 Treads 252 | 34 67 151 Legs 4 | . . 4 Wheels . | . . . Hover . | . . . Flight . | . . . Fastest Speed 50 | 50 160 100 Average Speed 148 | 113 160 155 Slowest Speed 160 | 160 160 160 Overloaded Moves . | . . . Propulsion Burnouts . | . . . Robots Hopped . | . . . Cave-ins Triggered . | . . . Exploration Rate (%) 22 | 4 20 42 Regions Visited 2 Branch Regions 1 Pre-discovered Areas 1 | . . 1 Known Exits Taken . | . . . Unknown Exits Taken 2 | 1 1 . Scrap Searched . | . . . Spaces Dug . | . . . Terrain Destroyed 7 | . 7 . Melee . | . . . Projectile . | . . . AOE 7 | . 7 . Terrain Rammed . | . . . Walls Destroyed . | . . . Machines Disabled . | . . . Actions | -11 -10 -10 --------- Run | Scr Mat Min Total 364 | 77 89 198 Wait 14 | 6 1 7 Move 288 | 58 66 164 Hop . | . . . Pick Up 17 | 7 5 5 Fast Attach . | . . . Attach 14 | 6 3 5 Detach . | . . . Swap 2 | . . 2 Drop 3 | . . 3 Fire 26 | . 14 12 Melee . | . . . Ram . | . . . Kick . | . . . Crush . | . . . Escape Stasis . | . . . Rewire . | . . . Trap . | . . . Miscellaneous . | . . . Route ------- -11/Scrapyard -10/Materials -10/Mines (discovered 1 exit: [*Mat]) History --------- Turn | Location | Event 7 | -11/Scrapyard | Discovered new exit (range 15) 86 | -11/Scrapyard | Entered Materials 198 | -10/Materials | Discovered new exit (range 12) 240 | -10/Materials | Entered Mines 243 | -10/Mines | Met a Derelict who couldn't figure out how to use a Trap Extractor 298 | -10/Mines | Learned location of Zion (-7) 301 | -10/Mines | Build established: Mutant 340 | -10/Mines | Discovered new exit (range 16) 503 | -10/Mines | Assembled infested the area 534 | -10/Mines | Core integrity fell below 50% 545 | -10/Mines | Core integrity fell below 20% 548 | -10/Mines | Destroyed by D-53 Grenadier with Mini Grenade Launcher Last Messages --------------- 00534_ as-81360 destroyed. 00535_ as-35730 destroyed. 00535_ as-99048 destroyed. 00535_ as-23551 destroyed. 00537_ as-63005 destroyed. 00537_ as-99488 destroyed. 00537_ as-73913 destroyed. 00538_ as-54719 destroyed. 00539_ U-05 Engineer lays Concrete. 00540_ U-05 Engineer builds a Wall. 00540_ D-53 Grenadier knocked back. 00540_ as-72167 destroyed. 00540_ as-69401 destroyed. 00540_ as-38262 destroyed. 00540_ D-53 Grenadier destroyed. 00540_ as-28106 destroyed. 00544_ U-05 Engineer builds a Wall. 00546_ Sml. Storage Unit destroyed. 00548_ System corrupted: Energy discharge (-1). 00548_ U-05 Engineer lays Concrete. Map ----- +----------------------------------------------------+ | ????????????????????????????????????????????????? | | ????????????????????????????????????????????????? | | ????????????????????????????????????????????????? | | ????????????????????????????????????????????????? | | ????????????????????????????????????????????????? | | ????????????????????????????????????????????????? | | ????????????????????????????????????????????????? | | ????????????????????????????????????????????????? | | ????????????????????????????????????????????????? | | ????????????????????????????????????????????????? | | ????????????????????????????????????????????????? | | ?????????????????????????? ???????????????????? | | ?????????????????????????# ????????????????????? | | ????????????????????????? ????????????????????? | | ????????????????????????? ?????????????????????? | | ????????????????????????# ?????????????????????? | | ???????????????????????? #?????????????????????? | | ??????????????????????## #?????????????????????? | | ??????????????????????# ##????????????????????? | | ?????????????????????## #????????????????????? | | ???????????????????### ?????????????????????? | | ?????????????###??## ??????????????????????? | | ????????????## ### #??###?????????????????? | | ????????????# ### ###???????????????? | | ????????????# # #???????????????? | | ?????????????????# @ ##??????????????? | | ?????????????????# #??????????????? | | ?????????????????# #??????????????? | | ?????????????????# #??####?#######? | | ?????????????????# #?#"!### #? | | ????????????????# ##?# !#X #? | | ????????????????## #??# !^^ #? | | ?????????????????### d #??# * #? | | ???????????????????# % #??# [!# #? | | ??????????????????####### #% #??# !### #? | | ?????????????????? #??######u###??##### #? | | ??????????????????# #????#### #????????#### ##? | | ??????????????????# #????# #???????????# #?? | | ??????????????????# #????# ## #???######### #?? | | ??????????????????# #????# ## #???# #?? | | ??????????????????# ###### ## #???# #?? | | ?????????????????## ## #???# #########?? | | ????????????????## ######### #???# #?????????? | | ????????????????# ##??????# #???# #?????????? | | ????????????????# #??????# ##### #?????????? | | ????????????????# ######?# ## ##????????? | | ???????????????## ### #?# ##???????? | | ?????????????### ## ### #???????? | | ????????????## #???????? | | ????????????# ##???????? | +----------------------------------------------------+ Best States ------------- Heat Dissipation 25 Energy Generation 14 Energy Capacity 140 Matter Stores 300 Matter Capacity 300 Sight Range 18 Robot Scan Range 10 Terrain Scan Density 10 Evasion (%) 50 Recoil Reduction 2 Item Schematics ----------------- None Robot Schematics ------------------ None Fabricated ------------ Nothing Alien Tech Used ----------------- None Achievements -------------- None Challenges ------------ None Game ------ Seed ThiefAnalysisProtection Manual? 0 Play Time 00:12:19 Cumulative 18.2 hours Start 2020.12.27 @ 09:02:38 End 2020.12.27 @ 09:12:28 Sessions 1 Manual Loads 0 Difficulty Rogue Special Mode None Game No. 34 Rogue 34 Adventurer 0 Explorer 0 Win Type - Total 0 Types 0/0/0/0/0/0/0/0/0 Lore% 16 Gallery% 22 Achievement% 16 Wizard Run 0 Options --------- ASCII 0 Keyboard 0 Movement Numpad Keybinds 0 Fullscreen 1 Font 18/SmallcapsGlow Map View 76x50 Tactical HUD 1 Map Filters NONE Filters NONE Steam 1 RUN: 94ffbd08-c703-4b8a-b20c-f989884f6ca3